[Event "Titled Tuesday Blitz October 25 Late 2022"]
[White "Roberts, Paul"]
[Black "Szente Varga, Fruzsina"]
[WhiteFideId "2400600"]
[BlackFideId "712264"]
[WhiteElo "2112"]
[BlackElo "1994"]
[Result "1/2-1/2"]
[Round "10"]
[TimeControl "180+1"]
[Date "2022.10.26"]
[WhiteClock "0:00:11"]
[BlackClock "0:00:13"]

1. e3 {[%clk 0:02:59]}  Nf6 {[%clk 0:02:56]} 2. Nf3 {[%clk 0:02:58]}  d5 {[%clk 0:02:56]} 3. c4 {[%clk 0:02:58]}  c6 {[%clk 0:02:51]} 4. Nc3 {[%clk 0:02:57]}  g6 {[%clk 0:02:50]} 5. b3 {[%clk 0:02:56]}  Bg7 {[%clk 0:02:50]} 6. Bb2 {[%clk 0:02:56]}  O-O {[%clk 0:02:30]} 7. Be2 {[%clk 0:02:56]}  dxc4 {[%clk 0:02:29]} 8. bxc4 {[%clk 0:02:55]}  Nbd7 {[%clk 0:02:24]} 9. d4 {[%clk 0:02:51]}  Re8 {[%clk 0:02:12]} 10. O-O {[%clk 0:02:47]}  Qc7 {[%clk 0:02:07]} 11. e4 {[%clk 0:02:46]}  e5 {[%clk 0:02:04]} 12. d5 {[%clk 0:02:46]}  cxd5 {[%clk 0:01:50]} 13. Nxd5 {[%clk 0:02:46]}  Nxd5 {[%clk 0:01:48]} 14. cxd5 {[%clk 0:02:46]}  Qd6 {[%clk 0:01:46]} 15. Qc2 {[%clk 0:02:43]}  Nc5 {[%clk 0:01:44]} 16. Nd2 {[%clk 0:02:40]}  Bd7 {[%clk 0:01:40]} 17. Nc4 {[%clk 0:02:40]}  Qe7 {[%clk 0:01:37]} 18. Ba3 {[%clk 0:02:34]}  Rac8 {[%clk 0:01:37]} 19. Rac1 {[%clk 0:02:31]}  Qf6 {[%clk 0:01:30]} 20. Qb1 {[%clk 0:02:26]}  b6 {[%clk 0:01:30]} 21. Bb2 {[%clk 0:02:20]}  Qf4 {[%clk 0:01:26]} 22. Nd6 {[%clk 0:02:15]}  Red8 {[%clk 0:01:17]} 23. g3 {[%clk 0:02:11]}  Qd2 {[%clk 0:01:05]} 24. Rc2 {[%clk 0:01:58]}  Qg5 {[%clk 0:01:04]} 25. Nxc8 {[%clk 0:01:56]}  Rxc8 {[%clk 0:01:05]} 26. f4 {[%clk 0:01:54]}  exf4 {[%clk 0:00:59]} 27. Rxf4 {[%clk 0:01:51]}  Ba4 {[%clk 0:00:49]} 28. Rc1 {[%clk 0:01:40]}  Re8 {[%clk 0:00:40]} 29. Bxg7 {[%clk 0:01:39]}  Kxg7 {[%clk 0:00:40]} 30. Rcf1 {[%clk 0:01:35]}  Re7 {[%clk 0:00:41]} 31. Qb2+ {[%clk 0:01:31]}  Kg8 {[%clk 0:00:38]} 32. e5 {[%clk 0:01:28]}  Qxe5 {[%clk 0:00:36]} 33. Qxe5 {[%clk 0:01:25]}  Rxe5 {[%clk 0:00:36]} 34. Bc4 {[%clk 0:01:25]}  f5 {[%clk 0:00:34]} 35. d6+ {[%clk 0:01:23]}  Kf8 {[%clk 0:00:34]} 36. Kf2 {[%clk 0:01:18]}  Ne4+ {[%clk 0:00:34]} 37. Ke3 {[%clk 0:01:10]}  Nxg3+ {[%clk 0:00:33]} 38. Kd4 {[%clk 0:01:10]}  Re4+ {[%clk 0:00:20]} 39. Rxe4 {[%clk 0:01:09]}  Nxe4 {[%clk 0:00:21]} 40. h4 {[%clk 0:00:57]}  Nxd6 {[%clk 0:00:20]} 41. Bd5 {[%clk 0:00:55]}  Ke7 {[%clk 0:00:18]} 42. Re1+ {[%clk 0:00:54]}  Kf8 {[%clk 0:00:18]} 43. Re6 {[%clk 0:00:52]}  Ne8 {[%clk 0:00:17]} 44. Ke5 {[%clk 0:00:48]}  Nc7 {[%clk 0:00:18]} 45. Rf6+ {[%clk 0:00:45]}  Ke8 {[%clk 0:00:18]} 46. h5 {[%clk 0:00:40]}  Nxd5 {[%clk 0:00:17]} 47. Kxd5 {[%clk 0:00:40]}  Ke7 {[%clk 0:00:17]} 48. Re6+ {[%clk 0:00:38]}  Kf7 {[%clk 0:00:17]} 49. hxg6+ {[%clk 0:00:36]}  hxg6 {[%clk 0:00:18]} 50. Ke5 {[%clk 0:00:36]}  Bb5 {[%clk 0:00:17]} 51. Rf6+ {[%clk 0:00:35]}  Kg7 {[%clk 0:00:17]} 52. a3 {[%clk 0:00:32]}  Bc4 {[%clk 0:00:16]} 53. Rd6 {[%clk 0:00:31]}  b5 {[%clk 0:00:16]} 54. Rd7+ {[%clk 0:00:30]}  Kh6 {[%clk 0:00:17]} 55. Rxa7 {[%clk 0:00:29]}  Kg5 {[%clk 0:00:17]} 56. Rc7 {[%clk 0:00:25]}  Bd3 {[%clk 0:00:16]} 57. Rc3 {[%clk 0:00:23]}  Be2 {[%clk 0:00:15]} 58. Rg3+ {[%clk 0:00:22]}  Kh5 {[%clk 0:00:15]} 59. Kf4 {[%clk 0:00:21]}  Bc4 {[%clk 0:00:14]} 60. Rg5+ {[%clk 0:00:21]}  Kh6 {[%clk 0:00:11]} 61. Rg3 {[%clk 0:00:21]}  Kg7 {[%clk 0:00:11]} 62. Rg1 {[%clk 0:00:20]}  Kf6 {[%clk 0:00:11]} 63. Rg3 {[%clk 0:00:19]}  Bd5 {[%clk 0:00:11]} 64. Rg1 {[%clk 0:00:19]}  Bc4 {[%clk 0:00:11]} 65. Rg3 {[%clk 0:00:19]}  Be2 {[%clk 0:00:11]} 66. Rg1 {[%clk 0:00:18]}  Bg4 {[%clk 0:00:11]} 67. Rb1 {[%clk 0:00:16]}  g5+ {[%clk 0:00:11]} 68. Ke3 {[%clk 0:00:15]}  f4+ {[%clk 0:00:12]} 69. Kf2 {[%clk 0:00:13]}  Bd7 {[%clk 0:00:11]} 70. Rd1 {[%clk 0:00:12]}  Be8 {[%clk 0:00:12]} 71. Rd6+ {[%clk 0:00:12]}  Kf5 {[%clk 0:00:12]} 72. Rd5+ {[%clk 0:00:12]}  Kg4 {[%clk 0:00:12]} 73. Re5 {[%clk 0:00:12]}  Bc6 {[%clk 0:00:12]} 74. Rc5 {[%clk 0:00:11]}  Bd7 {[%clk 0:00:12]} 75. Rd5 {[%clk 0:00:11]}  Be8 {[%clk 0:00:13]} 76. Re5 {[%clk 0:00:11]}  Bc6 {[%clk 0:00:13]} 77. Rc5 {[%clk 0:00:11]}  Bd7 {[%clk 0:00:12]} 78. Rd5 {[%clk 0:00:11]}  Be8 {[%clk 0:00:13]} 1/2-1/2


[Site "https://www.chess.com"]

[Event "Titled Tuesday Blitz October 25 Late 2022"]
[White "Roque Sola, Gisela"]
[Black "Liu, Kelsey"]
[WhiteFideId "5120241"]
[BlackFideId "30944481"]
[WhiteElo "1961"]
[BlackElo "2287"]
[Result "1/2-1/2"]
[Round "10"]
[TimeControl "180+1"]
[Date "2022.10.26"]
[WhiteClock "0:00:07"]
[BlackClock "0:00:35"]

1. c4 {[%clk 0:03:00]}  Nf6 {[%clk 0:02:59]} 2. Nc3 {[%clk 0:02:59]}  e6 {[%clk 0:02:59]} 3. e4 {[%clk 0:02:59]}  d5 {[%clk 0:02:58]} 4. e5 {[%clk 0:02:59]}  Nfd7 {[%clk 0:02:57]} 5. cxd5 {[%clk 0:02:49]}  Nxe5 {[%clk 0:02:57]} 6. d4 {[%clk 0:02:30]}  Ng6 {[%clk 0:02:48]} 7. Bb5+ {[%clk 0:02:27]}  Bd7 {[%clk 0:02:46]} 8. dxe6 {[%clk 0:02:14]}  fxe6 {[%clk 0:02:47]} 9. Qf3 {[%clk 0:02:08]}  c6 {[%clk 0:02:45]} 10. Bd3 {[%clk 0:02:04]}  Qf6 {[%clk 0:02:41]} 11. Qxf6 {[%clk 0:01:32]}  gxf6 {[%clk 0:02:42]} 12. Nf3 {[%clk 0:01:31]}  Bb4 {[%clk 0:02:39]} 13. O-O {[%clk 0:01:30]}  O-O {[%clk 0:02:38]} 14. a3 {[%clk 0:01:24]}  Bd6 {[%clk 0:02:34]} 15. Ne4 {[%clk 0:01:20]}  Bf4 {[%clk 0:02:30]} 16. Bc4 {[%clk 0:01:10]}  b5 {[%clk 0:02:23]} 17. Ba2 {[%clk 0:01:08]}  Na6 {[%clk 0:02:24]} 18. g3 {[%clk 0:00:49]}  Bc7 {[%clk 0:02:20]} 19. Bh6 {[%clk 0:00:48]}  Rf7 {[%clk 0:02:16]} 20. Rfd1 {[%clk 0:00:39]}  Bb6 {[%clk 0:02:13]} 21. Rac1 {[%clk 0:00:31]}  Bd8 {[%clk 0:01:50]} 22. Nc5 {[%clk 0:00:31]}  Nxc5 {[%clk 0:01:50]} 23. dxc5 {[%clk 0:00:32]}  Re7 {[%clk 0:01:39]} 24. Rxd7 {[%clk 0:00:31]}  Rxd7 {[%clk 0:01:37]} 25. Bxe6+ {[%clk 0:00:30]}  Rf7 {[%clk 0:01:38]} 26. Rd1 {[%clk 0:00:25]}  Be7 {[%clk 0:01:30]} 27. Rd7 {[%clk 0:00:23]}  a5 {[%clk 0:01:17]} 28. Rc7 {[%clk 0:00:20]}  Ne5 {[%clk 0:01:05]} 29. Rxe7 {[%clk 0:00:18]}  Nxf3+ {[%clk 0:01:01]} 30. Kg2 {[%clk 0:00:19]}  Ne5 {[%clk 0:01:01]} 31. Bxf7+ {[%clk 0:00:17]}  Nxf7 {[%clk 0:01:01]} 32. Rc7 {[%clk 0:00:16]}  Nxh6 {[%clk 0:00:58]} 33. Rxc6 {[%clk 0:00:16]}  Kf7 {[%clk 0:00:56]} 34. Rb6 {[%clk 0:00:16]}  b4 {[%clk 0:00:54]} 35. axb4 {[%clk 0:00:16]}  axb4 {[%clk 0:00:55]} 36. Rxb4 {[%clk 0:00:17]}  Nf5 {[%clk 0:00:55]} 37. Rf4 {[%clk 0:00:16]}  Ke6 {[%clk 0:00:54]} 38. b4 {[%clk 0:00:16]}  Nd4 {[%clk 0:00:54]} 39. Rxd4 {[%clk 0:00:15]}  Rb8 {[%clk 0:00:52]} 40. Rd3 {[%clk 0:00:14]}  Ke5 {[%clk 0:00:52]} 41. Rb3 {[%clk 0:00:14]}  Kd4 {[%clk 0:00:52]} 42. Kf3 {[%clk 0:00:14]}  Kc4 {[%clk 0:00:52]} 43. Rb1 {[%clk 0:00:14]}  Re8 {[%clk 0:00:50]} 44. Kf4 {[%clk 0:00:14]}  Re5 {[%clk 0:00:50]} 45. c6 {[%clk 0:00:14]}  Kb5 {[%clk 0:00:44]} 46. c7 {[%clk 0:00:13]}  Re8 {[%clk 0:00:44]} 47. Kf5 {[%clk 0:00:13]}  Rf8 {[%clk 0:00:43]} 48. c8=Q {[%clk 0:00:12]}  Rxc8 {[%clk 0:00:43]} 49. Kxf6 {[%clk 0:00:12]}  Rc2 {[%clk 0:00:44]} 50. f4 {[%clk 0:00:11]}  Rxh2 {[%clk 0:00:44]} 51. g4 {[%clk 0:00:11]}  Kc6 {[%clk 0:00:42]} 52. f5 {[%clk 0:00:11]}  h6 {[%clk 0:00:41]} 53. b5+ {[%clk 0:00:11]}  Kb6 {[%clk 0:00:41]} 54. Kg6 {[%clk 0:00:11]}  Rh4 {[%clk 0:00:40]} 55. f6 {[%clk 0:00:10]}  Rxg4+ {[%clk 0:00:40]} 56. Kxh6 {[%clk 0:00:10]}  Rf4 {[%clk 0:00:40]} 57. Kg7 {[%clk 0:00:10]}  Rg4+ {[%clk 0:00:40]} 58. Kf7 {[%clk 0:00:09]}  Rf4 {[%clk 0:00:40]} 59. Re1 {[%clk 0:00:08]}  Kxb5 {[%clk 0:00:39]} 60. Ke8 {[%clk 0:00:08]}  Rxf6 {[%clk 0:00:39]} 61. Ke7 {[%clk 0:00:08]}  Rf2 {[%clk 0:00:39]} 62. Ke8 {[%clk 0:00:08]}  Kc4 {[%clk 0:00:39]} 63. Ke7 {[%clk 0:00:09]}  Kd3 {[%clk 0:00:39]} 64. Ke8 {[%clk 0:00:09]}  Kd2 {[%clk 0:00:40]} 65. Re7 {[%clk 0:00:09]}  Kd3 {[%clk 0:00:40]} 66. Rd7+ {[%clk 0:00:10]}  Ke4 {[%clk 0:00:40]} 67. Re7+ {[%clk 0:00:10]}  Kd5 {[%clk 0:00:40]} 68. Rd7+ {[%clk 0:00:10]}  Kc6 {[%clk 0:00:41]} 69. Rf7 {[%clk 0:00:10]}  Re2+ {[%clk 0:00:40]} 70. Kf8 {[%clk 0:00:10]}  Kd6 {[%clk 0:00:40]} 71. Rf6+ {[%clk 0:00:11]}  Ke5 {[%clk 0:00:39]} 72. Rf7 {[%clk 0:00:11]}  Ra2 {[%clk 0:00:39]} 73. Re7+ {[%clk 0:00:11]}  Kf6 {[%clk 0:00:40]} 74. Rf7+ {[%clk 0:00:11]}  Kg6 {[%clk 0:00:40]} 75. Rg7+ {[%clk 0:00:10]}  Kh6 {[%clk 0:00:41]} 76. Re7 {[%clk 0:00:09]}  Ra8+ {[%clk 0:00:38]} 77. Kf7 {[%clk 0:00:09]}  Ra4 {[%clk 0:00:36]} 78. Re6+ {[%clk 0:00:10]}  Kg5 {[%clk 0:00:36]} 79. Rg6+ {[%clk 0:00:09]}  Kf5 {[%clk 0:00:37]} 80. Rf6+ {[%clk 0:00:09]}  Ke5 {[%clk 0:00:37]} 81. Rb6 {[%clk 0:00:08]}  Ra7+ {[%clk 0:00:36]} 82. Kg6 {[%clk 0:00:07]}  Re7 {[%clk 0:00:35]} 83. Rb5+ {[%clk 0:00:07]}  Kf4 {[%clk 0:00:35]} 84. Rb4+ {[%clk 0:00:08]}  Re4 {[%clk 0:00:34]} 85. Rxe4+ {[%clk 0:00:07]}  Kxe4 {[%clk 0:00:35]} 1/2-1/2


[Site "https://www.chess.com"]

[Event "Titled Tuesday Blitz October 25 Late 2022"]
[White "Sadhwani, Raunak"]
[Black "Papasimakopoulos, Alexandros"]
[WhiteFideId "35093487"]
[BlackFideId "4244125"]
[WhiteElo "2656"]
[BlackElo "2357"]
[Result "1-0"]
[Round "10"]
[TimeControl "180+1"]
[Date "2022.10.26"]
[WhiteClock "0:00:16"]
[BlackClock "0:00:10"]

1. d4 {[%clk 0:03:00]}  e6 {[%clk 0:03:00]} 2. Nc3 {[%clk 0:03:00]}  d5 {[%clk 0:02:59]} 3. Bf4 {[%clk 0:03:01]}  Bb4 {[%clk 0:03:00]} 4. e3 {[%clk 0:03:00]}  Nf6 {[%clk 0:02:59]} 5. Bd3 {[%clk 0:02:59]}  c5 {[%clk 0:02:58]} 6. dxc5 {[%clk 0:02:57]}  Bxc3+ {[%clk 0:02:57]} 7. bxc3 {[%clk 0:02:58]}  Qa5 {[%clk 0:02:56]} 8. Ne2 {[%clk 0:02:50]}  Qxc5 {[%clk 0:02:56]} 9. O-O {[%clk 0:02:46]}  O-O {[%clk 0:02:57]} 10. Be5 {[%clk 0:02:39]}  Qe7 {[%clk 0:02:36]} 11. f4 {[%clk 0:02:33]}  Nc6 {[%clk 0:02:32]} 12. Bd4 {[%clk 0:02:32]}  Ne4 {[%clk 0:02:31]} 13. Bxe4 {[%clk 0:02:22]}  dxe4 {[%clk 0:02:32]} 14. Ng3 {[%clk 0:02:22]}  f5 {[%clk 0:02:21]} 15. Nh5 {[%clk 0:02:22]}  Rf7 {[%clk 0:02:21]} 16. Qe2 {[%clk 0:02:07]}  b6 {[%clk 0:02:18]} 17. Rad1 {[%clk 0:01:58]}  Bb7 {[%clk 0:02:16]} 18. g4 {[%clk 0:01:58]}  Rc8 {[%clk 0:02:12]} 19. Rf2 {[%clk 0:01:46]}  Qa3 {[%clk 0:01:51]} 20. Bxg7 {[%clk 0:01:41]}  Ba6 {[%clk 0:01:40]} 21. Qe1 {[%clk 0:01:30]}  Rxg7 {[%clk 0:01:39]} 22. Nxg7 {[%clk 0:01:31]}  Kxg7 {[%clk 0:01:39]} 23. Rg2 {[%clk 0:01:30]}  Kh8 {[%clk 0:01:27]} 24. Rd7 {[%clk 0:01:27]}  Rg8 {[%clk 0:01:22]} 25. gxf5 {[%clk 0:01:13]}  Ne7 {[%clk 0:00:45]} 26. f6 {[%clk 0:00:38]}  Nf5 {[%clk 0:00:41]} 27. Qd2 {[%clk 0:00:23]}  Rf8 {[%clk 0:00:17]} 28. Rgg7 {[%clk 0:00:16]}  Rxf6 {[%clk 0:00:11]} 29. Rxh7+ {[%clk 0:00:16]}  Kg8 {[%clk 0:00:11]} 30. Qg2+ {[%clk 0:00:16]}  Kf8 {[%clk 0:00:10]} 31. Rh8# {[%clk 0:00:16]} 1-0


[Site "https://www.chess.com"]

[Event "Titled Tuesday Blitz October 25 Late 2022"]
[White "Sanchez, Robert"]
[Black "Rose, Felix"]
[WhiteFideId "2034360"]
[BlackFideId "5105722"]
[WhiteElo "2404"]
[BlackElo "2039"]
[Result "1-0"]
[Round "10"]
[TimeControl "180+1"]
[Date "2022.10.26"]
[WhiteClock "0:00:44"]
[BlackClock "0:00:07"]

1. e4 {[%clk 0:03:00]}  c5 {[%clk 0:02:59]} 2. Nf3 {[%clk 0:03:01]}  e6 {[%clk 0:02:59]} 3. d4 {[%clk 0:03:01]}  cxd4 {[%clk 0:03:00]} 4. Nxd4 {[%clk 0:03:02]}  a6 {[%clk 0:03:01]} 5. Bd3 {[%clk 0:03:02]}  Bc5 {[%clk 0:03:00]} 6. Nb3 {[%clk 0:03:03]}  Ba7 {[%clk 0:03:00]} 7. Nc3 {[%clk 0:03:03]}  b5 {[%clk 0:02:57]} 8. Qe2 {[%clk 0:03:04]}  Bb7 {[%clk 0:02:57]} 9. Be3 {[%clk 0:03:04]}  Bxe3 {[%clk 0:02:54]} 10. Qxe3 {[%clk 0:03:04]}  Nc6 {[%clk 0:02:54]} 11. f4 {[%clk 0:03:04]}  d6 {[%clk 0:02:53]} 12. O-O-O {[%clk 0:03:04]}  Rc8 {[%clk 0:02:37]} 13. Kb1 {[%clk 0:03:01]}  Qc7 {[%clk 0:02:33]} 14. Rhe1 {[%clk 0:03:00]}  Nf6 {[%clk 0:02:32]} 15. h3 {[%clk 0:02:44]}  Nb4 {[%clk 0:02:29]} 16. e5 {[%clk 0:02:37]}  Nxd3 {[%clk 0:02:23]} 17. Qxd3 {[%clk 0:02:07]}  dxe5 {[%clk 0:02:03]} 18. fxe5 {[%clk 0:02:04]}  Nd7 {[%clk 0:01:46]} 19. a3 {[%clk 0:01:38]}  Bxg2 {[%clk 0:00:49]} 20. Qg3 {[%clk 0:01:27]}  Bd5 {[%clk 0:00:23]} 21. Qxg7 {[%clk 0:01:22]}  Rf8 {[%clk 0:00:19]} 22. Nxd5 {[%clk 0:01:20]}  Qxc2+ {[%clk 0:00:19]} 23. Ka2 {[%clk 0:01:19]}  exd5 {[%clk 0:00:17]} 24. e6 {[%clk 0:00:56]}  Nc5 {[%clk 0:00:12]} 25. Nxc5 {[%clk 0:00:47]}  Qxc5 {[%clk 0:00:08]} 26. e7 {[%clk 0:00:45]}  Qc4+ {[%clk 0:00:07]} 27. Ka1 {[%clk 0:00:44]} 1-0


[Site "https://www.chess.com"]

[Event "Titled Tuesday Blitz October 25 Late 2022"]
[White "Senthil Maran K"]
[Black "Gedgafov, Chamal"]
[WhiteFideId "25035681"]
[BlackFideId "34130621"]
[WhiteElo "2109"]
[BlackElo "2067"]
[Result "1/2-1/2"]
[Round "10"]
[TimeControl "180+1"]
[Date "2022.10.26"]
[WhiteClock "0:02:05"]
[BlackClock "0:02:04"]

1. g3 {[%clk 0:02:52]}  d5 {[%clk 0:02:58]} 2. Nf3 {[%clk 0:02:51]}  c6 {[%clk 0:02:58]} 3. d4 {[%clk 0:02:50]}  Nf6 {[%clk 0:02:57]} 4. c4 {[%clk 0:02:50]}  g6 {[%clk 0:02:51]} 5. Bg2 {[%clk 0:02:49]}  Bg7 {[%clk 0:02:52]} 6. O-O {[%clk 0:02:50]}  O-O {[%clk 0:02:52]} 7. Ne5 {[%clk 0:02:51]}  e6 {[%clk 0:02:51]} 8. Nc3 {[%clk 0:02:50]}  Nfd7 {[%clk 0:02:52]} 9. Bf4 {[%clk 0:02:49]}  Nxe5 {[%clk 0:02:52]} 10. Bxe5 {[%clk 0:02:50]}  Bxe5 {[%clk 0:02:50]} 11. dxe5 {[%clk 0:02:51]}  Nd7 {[%clk 0:02:49]} 12. cxd5 {[%clk 0:02:50]}  cxd5 {[%clk 0:02:48]} 13. f4 {[%clk 0:02:45]}  Qb6+ {[%clk 0:02:47]} 14. Kh1 {[%clk 0:02:45]}  Qxb2 {[%clk 0:02:47]} 15. Qd4 {[%clk 0:02:41]}  Qb6 {[%clk 0:02:43]} 16. Rfd1 {[%clk 0:02:36]}  Qxd4 {[%clk 0:02:41]} 17. Rxd4 {[%clk 0:02:37]}  Nc5 {[%clk 0:02:40]} 18. e4 {[%clk 0:02:34]}  dxe4 {[%clk 0:02:39]} 19. Nxe4 {[%clk 0:02:35]}  Nxe4 {[%clk 0:02:40]} 20. Bxe4 {[%clk 0:02:36]}  Rb8 {[%clk 0:02:40]} 21. Rc1 {[%clk 0:02:34]}  b6 {[%clk 0:02:39]} 22. Rc7 {[%clk 0:02:34]}  a5 {[%clk 0:02:37]} 23. Ra7 {[%clk 0:02:30]}  b5 {[%clk 0:02:29]} 24. Rxa5 {[%clk 0:02:24]}  Bb7 {[%clk 0:02:29]} 25. Bxb7 {[%clk 0:02:18]}  Rxb7 {[%clk 0:02:30]} 26. Rb4 {[%clk 0:02:17]}  Rfb8 {[%clk 0:02:30]} 27. Kg2 {[%clk 0:02:17]}  h5 {[%clk 0:02:29]} 28. Kf3 {[%clk 0:02:17]}  Rb6 {[%clk 0:02:28]} 29. Ke4 {[%clk 0:02:17]}  Kg7 {[%clk 0:02:23]} 30. Kd4 {[%clk 0:02:16]}  R6b7 {[%clk 0:02:19]} 31. Kc5 {[%clk 0:02:13]}  Rc7+ {[%clk 0:02:15]} 32. Kd6 {[%clk 0:02:13]}  Rc2 {[%clk 0:02:15]} 33. a3 {[%clk 0:02:08]}  Rb6+ {[%clk 0:02:12]} 34. Kd7 {[%clk 0:02:05]}  Rb7+ {[%clk 0:02:13]} 35. Kd8 {[%clk 0:02:05]}  Rb8+ {[%clk 0:02:04]} 36. Kd7 {[%clk 0:02:05]}  Rb7+ {[%clk 0:02:04]} 37. Kd6 {[%clk 0:02:05]}  Rb6+ {[%clk 0:02:04]} 38. Kd7 {[%clk 0:02:05]}  Rb7+ {[%clk 0:02:04]} 1/2-1/2


[Site "https://www.chess.com"]

[Event "Titled Tuesday Blitz October 25 Late 2022"]
[White "Shapiro, Daniel"]
[Black "Muhammad, Shahzeb"]
[WhiteFideId "2001780"]
[BlackFideId "7804806"]
[WhiteElo "2260"]
[BlackElo "2406"]
[Result "0-1"]
[Round "10"]
[TimeControl "180+1"]
[Date "2022.10.26"]
[WhiteClock "0:00:03"]
[BlackClock "0:00:15"]

1. d4 {[%clk 0:03:00]}  Nf6 {[%clk 0:02:54]} 2. c4 {[%clk 0:03:00]}  e6 {[%clk 0:02:52]} 3. g3 {[%clk 0:02:59]}  Bb4+ {[%clk 0:02:52]} 4. Bd2 {[%clk 0:02:55]}  Qe7 {[%clk 0:02:52]} 5. Bg2 {[%clk 0:02:48]}  Nc6 {[%clk 0:02:51]} 6. Nf3 {[%clk 0:02:45]}  Bxd2+ {[%clk 0:02:50]} 7. Qxd2 {[%clk 0:02:41]}  Ne4 {[%clk 0:02:50]} 8. Qc2 {[%clk 0:02:31]}  Qb4+ {[%clk 0:02:49]} 9. Kf1 {[%clk 0:02:16]}  f5 {[%clk 0:02:48]} 10. a3 {[%clk 0:02:13]}  Qd6 {[%clk 0:02:45]} 11. e3 {[%clk 0:02:10]}  O-O {[%clk 0:02:42]} 12. Nc3 {[%clk 0:02:05]}  Nxc3 {[%clk 0:02:41]} 13. Qxc3 {[%clk 0:02:04]}  b6 {[%clk 0:02:33]} 14. d5 {[%clk 0:01:53]}  exd5 {[%clk 0:02:32]} 15. Rd1 {[%clk 0:01:45]}  Ba6 {[%clk 0:02:26]} 16. b3 {[%clk 0:01:35]}  Qc5 {[%clk 0:02:23]} 17. Ng5 {[%clk 0:01:08]}  dxc4 {[%clk 0:02:14]} 18. b4 {[%clk 0:01:07]}  Qe7 {[%clk 0:02:05]} 19. h4 {[%clk 0:01:04]}  Rad8 {[%clk 0:01:57]} 20. Bd5+ {[%clk 0:01:02]}  Kh8 {[%clk 0:01:56]} 21. Bxc4 {[%clk 0:00:59]}  Bxc4+ {[%clk 0:01:50]} 22. Qxc4 {[%clk 0:00:59]}  h6 {[%clk 0:01:43]} 23. Nh3 {[%clk 0:00:56]}  Rc8 {[%clk 0:01:23]} 24. Nf4 {[%clk 0:00:55]}  Rf6 {[%clk 0:01:16]} 25. h5 {[%clk 0:00:52]}  Ne5 {[%clk 0:01:12]} 26. Qc3 {[%clk 0:00:45]}  Ng4 {[%clk 0:00:57]} 27. Ng6+ {[%clk 0:00:38]}  Rxg6 {[%clk 0:00:57]} 28. hxg6 {[%clk 0:00:39]}  Qe4 {[%clk 0:00:57]} 29. Rh4 {[%clk 0:00:33]}  d6 {[%clk 0:00:43]} 30. Rxd6 {[%clk 0:00:23]}  Qf3 {[%clk 0:00:29]} 31. Rd2 {[%clk 0:00:13]}  Re8 {[%clk 0:00:28]} 32. Re2 {[%clk 0:00:06]}  c5 {[%clk 0:00:20]} 33. bxc5 {[%clk 0:00:05]}  bxc5 {[%clk 0:00:20]} 34. Qxc5 {[%clk 0:00:05]}  Rb8 {[%clk 0:00:18]} 35. Qc2 {[%clk 0:00:03]}  Rd8 {[%clk 0:00:15]} 0-1


[Site "https://www.chess.com"]

[Event "Titled Tuesday Blitz October 25 Late 2022"]
[White "Sivakumar, Shaaketh"]
[Black "Chigaev, Maksim"]
[WhiteFideId "30940176"]
[BlackFideId "4108116"]
[WhiteElo "2174"]
[BlackElo "2537"]
[Result "0-1"]
[Round "10"]
[TimeControl "180+1"]
[Date "2022.10.26"]
[WhiteClock "0:00:03"]
[BlackClock "0:00:08"]

1. d4 {[%clk 0:03:00]}  Nf6 {[%clk 0:02:59]} 2. Bf4 {[%clk 0:02:59]}  d6 {[%clk 0:02:59]} 3. Nc3 {[%clk 0:02:58]}  Nbd7 {[%clk 0:03:00]} 4. e4 {[%clk 0:02:57]}  e5 {[%clk 0:02:59]} 5. Be3 {[%clk 0:02:55]}  exd4 {[%clk 0:02:56]} 6. Qxd4 {[%clk 0:02:51]}  Be7 {[%clk 0:02:55]} 7. h3 {[%clk 0:02:46]}  O-O {[%clk 0:02:56]} 8. Nf3 {[%clk 0:02:45]}  a6 {[%clk 0:02:54]} 9. a4 {[%clk 0:02:44]}  b6 {[%clk 0:02:53]} 10. Be2 {[%clk 0:02:31]}  Bb7 {[%clk 0:02:50]} 11. O-O {[%clk 0:02:22]}  Re8 {[%clk 0:02:44]} 12. Nd2 {[%clk 0:02:18]}  Ne5 {[%clk 0:02:37]} 13. Bf4 {[%clk 0:01:47]}  Bf8 {[%clk 0:02:24]} 14. Nd5 {[%clk 0:01:42]}  c5 {[%clk 0:02:03]} 15. Nxf6+ {[%clk 0:01:36]}  Qxf6 {[%clk 0:02:02]} 16. Bxe5 {[%clk 0:01:28]}  Rxe5 {[%clk 0:02:00]} 17. Qd3 {[%clk 0:01:21]}  d5 {[%clk 0:01:49]} 18. f4 {[%clk 0:01:14]}  Ree8 {[%clk 0:01:35]} 19. exd5 {[%clk 0:01:12]}  Bxd5 {[%clk 0:00:59]} 20. Qxd5 {[%clk 0:00:57]}  Rad8 {[%clk 0:00:59]} 21. Ne4 {[%clk 0:00:29]}  Qxb2 {[%clk 0:00:56]} 22. Qf5 {[%clk 0:00:20]}  Qd4+ {[%clk 0:00:57]} 23. Kh1 {[%clk 0:00:18]}  Rxe4 {[%clk 0:00:42]} 24. Bd3 {[%clk 0:00:17]}  Rde8 {[%clk 0:00:38]} 25. Bxe4 {[%clk 0:00:13]}  Qxe4 {[%clk 0:00:34]} 26. Qxe4 {[%clk 0:00:13]}  Rxe4 {[%clk 0:00:34]} 27. Rfb1 {[%clk 0:00:09]}  Re6 {[%clk 0:00:15]} 28. Re1 {[%clk 0:00:09]}  Rf6 {[%clk 0:00:15]} 29. g3 {[%clk 0:00:09]}  g6 {[%clk 0:00:15]} 30. Kg2 {[%clk 0:00:08]}  Kg7 {[%clk 0:00:15]} 31. Rab1 {[%clk 0:00:07]}  c4 {[%clk 0:00:13]} 32. Re4 {[%clk 0:00:06]}  Rc6 {[%clk 0:00:12]} 33. Rd1 {[%clk 0:00:04]}  Rc7 {[%clk 0:00:11]} 34. Rdd4 {[%clk 0:00:03]}  b5 {[%clk 0:00:11]} 35. axb5 {[%clk 0:00:04]}  axb5 {[%clk 0:00:12]} 36. Rd5 {[%clk 0:00:04]}  b4 {[%clk 0:00:09]} 37. Rb5 {[%clk 0:00:03]}  b3 {[%clk 0:00:07]} 38. cxb3 {[%clk 0:00:03]}  c3 {[%clk 0:00:08]} 0-1


[Site "https://www.chess.com"]